Workbook

Sheet Emplacement fichier (hidden)
F2: 0 | G2: 0 | H2: 0
B11: Nombre de fichiers à importer:

Sheet exemple tab2 (hidden)
A2: liste des corps | C2: rémunération mensuelle moyenne (par EQTP) | F2: effectifs physiques | H2: effectifs (ETPT) | K2: Taux moyen de temps partiel | N2: Indicateur mixité salaire | O2: Indicateur mixité emploi | P2: Indicateur qualité TIB
C3: hommes | D3: femmes | F3: hommes | G3: femmes | H3: hommes | I3: femmes | K3: hommes | L3: femmes
A4: corps 1 | C4: 3371095.989 | D4: 1796004.428 | F4: 1504 | G4: 796 | H4: 1499.5 | I4: 783.2166667 | K4: =H4/F4 -> 0.9970079787 | L4: =I4/G4 -> 0.983940536
C9: rémunération mensuelle moyenne (par EQTP) | F9: Indicateur mixité salaire | G9: Indicateur mixité emploi | H9: Indicateur qualité TIB | I9: effet démographique du corps | K9: effet primes à C-G-E identique lié à
A10: liste des corps | C10: hommes | D10: femmes | K10: Catégorie prime1 | L10: catégorie prime 2 | M10: Catégorie prime3 | N10: Catégorie prime4 | O10: Catégorie prime5 | P10: Catégorie prime6 | Q10: Catégorie prime7 | R10: Catégorie prime8 | S10: Catégorie prime9 | T10: Catégorie prime10 | U10: Catégorie prime10
A11: corps 1 | C11: 3371095.989 | D11: 1796004.428 | F11: 1 | G11: 0.04694480613 | I11: 0 | K11: -22.71881992 | L11: 11.54295608 | M11: 18.50596896 | N11: 0 | O11: 0 | P11: 0 | Q11: 0 | R11: 0 | S11: 0 | T11: 4.390302996 | U11: 4.390302996
C15: écarts rémunération F-H | F15: Indicateur mixité salaire | G15: Indicateur mixité emploi | H15: Indicateur qualité TIB | I15: effet démographique du corps/H | K15: effet primes/H à C-G-E identique lié à
A16: liste des corps | C16: % (F-H)/H | K16: indemnités liées au temps ou aux cycles de travail | L16: catégorie prime 2 | M16: Catégorie prime3 | N16: Catégorie prime4 | O16: Catégorie prime5 | P16: Catégorie prime6 | Q16: Catégorie prime7 | R16: Catégorie prime8 | S16: Catégorie prime9 | T16: Catégorie prime10 | U16: Catégorie prime10
A17: corps 1 | C17: =(D11-C11)/C11 -> -0.4672342663 | I17: =I11/C11 -> 0 | K17: =K11/$C11 -> -6.739297841e-06 | L17: 3.424095937e-06 | M17: 5.489600124e-06 | N17: 0 | O17: 0 | P17: 0 | Q17: 0 | R17: 0 | S17: 0 | T17: 1.302336988e-06 | U17: 1.302336988e-06

Sheet exemple tab (hidden)
A3: nombre de corps pris en compte | F3: -1
I4: part des femmes (%)
A5: emploi annuel moyen : | D5: hommes | F5: femmes | H5: total
A6: effectifs annuels | D6: 58857.41667 | F6: 75957.41667 | H6: =D6+F6 -> 134814.8333 | I6: =F6/H6 -> 0.563420321
A7: équivalents temps plein employés | D7: 57687.41417 | F7: 71630.22475 | H7: =D7+F7 -> 129317.6389 | I7: =F7/H7 -> 0.55390916
A8: taux moyen de temps partiel | D8: =D7/D6 -> 0.9801214092 | F8: =F7/F6 -> 0.9430313443 | H8: =H7/H6 -> 0.9592241129
A10: Rémunération mensuelle moyenne en € non redressée du temps partiel (et de la présence partielle dans le mois)
C11: €/mois | F11: €/mois | H11: €/mois | I11: % (F-H)/H
A12: Hommes | C12: 26.00986478 | D12: Femmes | F12: 32.67497671 | G12: écart | H12: =F12-C12 -> 6.665111928 | I12: =F12/C12-1 -> 0.2562532325
A14: Rémunération mensuelle moyenne en € par équivalent temps plein
A15: Hommes | C15: 26.53739071 | D15: Femmes | F15: 34.64887663 | G15: écart | H15: =F15-C15 -> 8.11148592 | I15: =F15/C15-1 -> 0.3056625276
A18: décomposition des écarts : | H18: €/mois | I18: % effet/(F-H par EQTP)
C19: effet temps partiel | H19: =H12-H15 -> -1.446373992 | I19: =H19/H$15 -> -0.1783118416
C20: effet ségrégation des corps | H20: xxxx
C21: effet démographique au sein des corps | H21: 9.534692968 | I21: 1.175455775
D22: dont sur primes | H22: -26.07854192 | I22: -3.215014138
C23: effet primes à corps-Grade-échelon identique | H23: 6.00630409 | I23: 0.7404690274
D24: dont | E24: Catégorie prime1 | H24: 5613391.212 | I24: 692029.952
E25: catégorie prime 2 | H25: 5613397.876 | I25: 692030.7735
E26: Catégorie prime3 | H26: 5613396.476 | I26: 692030.6009
E27: Catégorie prime4 | H27: 5613397.469 | I27: 692030.7234
E28: Catégorie prime5 | H28: 5613397.469 | I28: 692030.7234
E29: Catégorie prime6 | H29: 5613397.469 | I29: 692030.7234
E30: Catégorie prime7 | H30: 5613397.469 | I30: 692030.7234
E31: Catégorie prime8 | H31: 5613397.469 | I31: 692030.7234
E32: Catégorie prime9 | H32: 5613397.469 | I32: 692030.7234
E33: Catégorie prime10 | H33: 5613393.056 | I33: 692030.1793
E34: Autre | H34: 5613393.056 | I34: 692030.1793

Sheet Résultats par corps (hidden)
A2: liste des corps | C2: rémunération mensuelle moyenne (par EQTP) | F2: effectifs physiques | H2: effectifs (ETPT) | K2: Taux moyen de temps partiel | N2: indicateur "qualité" 1 | O2: indicateur "qualité" 2 | P2: indicateur "qualité" 3
C3: hommes | D3: femmes | F3: hommes | G3: femmes | H3: hommes | I3: femmes | K3: hommes | L3: femmes
A4: corps 1 | C4: 3371095.989 | D4: 1796004.428 | F4: 1504 | G4: 796 | H4: 1499.5 | I4: 783.2166667 | K4: =H4/F4 -> 0.9970079787 | L4: =I4/G4 -> 0.983940536
C9: rémunération mensuelle moyenne (par EQTP) | F9: indicateur "qualité" 1 | G9: indicateur "qualité" 2 | H9: indicateur "qualité" 3 | I9: effet démographique du corps | K9: effet primes à C-G-E identique lié à
A10: liste des corps | C10: hommes | D10: femmes | K10: Catégorie prime1 | L10: catégorie prime 2 | M10: Catégorie prime3 | N10: Catégorie prime4 | O10: Catégorie prime5 | P10: Catégorie prime6 | Q10: Catégorie prime7 | R10: Catégorie prime8 | S10: Catégorie prime9 | T10: Catégorie prime10 | U10: Catégorie prime10
A11: corps 1 | C11: 3371095.989 | D11: 1796004.428 | F11: 1 | G11: 0.04694480613 | I11: 0 | K11: -22.71881992 | L11: 11.54295608 | M11: 18.50596896 | N11: 0 | O11: 0 | P11: 0 | Q11: 0 | R11: 0 | S11: 0 | T11: 4.390302996 | U11: 4.390302996
C15: écarts rémunération F-H | F15: indicateur "qualité" 1 | G15: indicateur "qualité" 2 | H15: indicateur "qualité" 3 | I15: effet démographique du corps/H | K15: effet primes/H à C-G-E identique lié à
A16: liste des corps | C16: % (F-H)/H | K16: indemnités liées au temps ou aux cycles de travail | L16: catégorie prime 2 | M16: Catégorie prime3 | N16: Catégorie prime4 | O16: Catégorie prime5 | P16: Catégorie prime6 | Q16: Catégorie prime7 | R16: Catégorie prime8 | S16: Catégorie prime9 | T16: Catégorie prime10 | U16: Catégorie prime10
A17: corps 1 | C17: =(D11-C11)/C11 -> -0.4672342663 | I17: =I11/C11 -> 0 | K17: =K11/$C11 -> -6.739297841e-06 | L17: 3.424095937e-06 | M17: 5.489600124e-06 | N17: 0 | O17: 0 | P17: 0 | Q17: 0 | R17: 0 | S17: 0 | T17: 1.302336988e-06 | U17: 1.302336988e-06

Sheet logo (hidden)

Sheet Administrateur (hidden)
B12: Ecart entre ETPE et ETPR : | F12: 1 | G12: %
B14: Nombre de lignes où le cas se produit : | F14: 10 | G14: %
B16: Nombre maximum de catégories : | F16: 10
B18: Hyperlien - Documentation: | E18: https://www.fonction-publique.gouv.fr/files/files/carrieres_et_parcours_professionnel/egalite-pro/documentation-outil-de-calcul-des-ecarts-de-remuneration.pdf
B20: Hyperlien - Grille de lecture | E20: https://www.fonction-publique.gouv.fr/files/files/carrieres_et_parcours_professionnel/egalite-pro/grille-de-lecture-des-resultats.pdf
B22: Nouvelle nomenclature DGFIP: | E22: Y:\Travaux B3 par thèmes\2.4 Parité\égalité de rémunération F-H\outil et documents en ligne\fichiers dans l'outil\Nomenclature rémunérations DGFIP_270122.xlsx
B24: Nouveau Transfa: | E24: Y:\Travaux B3 par thèmes\2.4 Parité\égalité de rémunération F-H\outil et documents en ligne\fichiers dans l'outil\titulaire_FPE_140222.xlsx

Sheet Menu Initialisation

Sheet Résumé (hidden)
A1: Résumé de l'importation
B4: Fichier importé: | D4: test_psop.xlsx
B6: Il contient 134 lignes correspondant à 263 corps-grade-échelon-indice.
B9: 0 | C9: lignes avec effectifs à 0 supprimées
B10: 0 | C10: lignes avec TIB à 0 supprimées
B11: 0 | C11: lignes avec indice égal 0 supprimées
B12: 0 | C12: lignes correspondant à des corps de non fonctionnaires supprimées

Sheet Cat DGFIP (hidden)
A1: Catégorie | B1: Intitulés des différentes catégories | C1: Indicatrice sur-rémunération du temps partiel
A2: TIB | B2: TIB | C2: 1
A3: Cat1 | B3: sur-rémunération temps partiel (80% ou 90%) | C3: 0
A4: Cat2 | B4: temps ou aux cycles de travail | C4: 0
A5: Cat3 | B5: géographie et aux mobilités non forcées | C5: 1
A6: Cat4 | B6: résultats / performance / engagement professionnel | C6: 0
A7: Cat5 | B7: rémunérations accessoires | C7: 0
A8: Cat6 | B8: fonctions / sujétions indexées sur le traitement | C8: 1
A9: Cat7 | B9: fonctions / sujétions non indexées sur le traitement | C9: 1
A10: Cat8 | B10: restructurations ou mobilités forcées | C10: 0
A11: Cat9
A12: Cat10
A13: Autre | B13: autres primes et écarts résiduels sur traitement | C13: 0

Sheet exemple (hidden)
B1: Les cases XXXX sont à remplir à partir des calculs faits sur la ligne "ensemble des corps"
B2: Les cases YYYY sont à remplir à partir des calculs faits sur chaque ligne de corps"
A5: nombre de corps pris en compte | F5: xxx
I6: part des femmes (%)
A7: emploi annuel moyen : | D7: hommes | F7: femmes | H7: total
A8: effectifs annuels | D8: xxxx | F8: xxxx | H8: =D8+F8 ->  | I8: =F8/H8 -> 
A9: équivalents temps plein employés | D9: xxxx | F9: xxxx | H9: =D9+F9 ->  | I9: =F9/H9 -> 
A10: taux moyen de temps partiel | D10: =D9/D8 ->  | F10: =F9/F8 ->  | H10: =H9/H8 -> 
A12: Rémunération mensuelle moyenne en € non redressée du temps partiel (et de la présence partielle dans le mois)
C13: €/mois | F13: €/mois | H13: €/mois | I13: % F/H
A14: Hommes | C14: xxx | D14: Femmes | F14: xxx | G14: écart | H14: =F14-C14 ->  | I14: =F14/C14-1 -> 
A16: Rémunération mensuelle moyenne en € par équivalent temps plein
A17: Hommes | C17: xxx | D17: Femmes | F17: xxx | G17: écart | H17: =F17-C17 ->  | I17: =F17/C17-1 -> 
A20: décomposition des écarts : | H20: €/mois | I20: % F/H
C21: effet temps partiel | H21: =H14-H17 ->  | I21: =H21/H$17 -> 
C22: effet ségrégation des corps | H22: xxxx
C23: effet démographique au sein des corps | H23: xxxx
D24: dont sur primes | H24: xxxx
C25: effet primes à corps-Grade-échelon identique | H25: xxxx
D26: dont | E26: Catégorie prime1 | H26: xxxx
E27: catégorie prime 2 | H27: xxxx
E28: Catégorie prime3 | H28: xxxx
E29: Catégorie prime4 | H29: xxxx
E30: Catégorie prime5 | H30: xxxx
E31: Catégorie prime6 | H31: xxxx
E32: Catégorie prime7 | H32: xxxx
E33: Catégorie prime8 | H33: xxxx
E34: Catégorie prime9 | H34: xxxx
E35: Catégorie prime10 | H35: xxxx
A44: liste des corps | C44: rémunération mensuelle moyenne (par EQTP) | F44: effectifs physiques | H44: effectifs (ETPT) | K44: Taux moyen de temps partiel | N44: indicateur "qualité" 1 | O44: indicateur "qualité" 2 | P44: indicateur "qualité" 3
C45: hommes | D45: femmes | F45: hommes | G45: femmes | H45: hommes | I45: femmes | K45: hommes | L45: femmes
A46: corps 1 | C46: YYYY | D46: YYYY | F46: YYYY | G46: YYYY | H46: YYYY | I46: YYYY | K46: =H46/F46 ->  | L46: =I46/G46 -> 
A47: corps 2 | C47: YYYY | D47: YYYY | F47: YYYY | G47: YYYY | H47: YYYY | I47: YYYY | K47: =H47/F47 -> 
A48: … | C48: YYYY | D48: YYYY | F48: YYYY | G48: YYYY | H48: YYYY | I48: YYYY
C49: YYYY | D49: YYYY | F49: YYYY | G49: YYYY | H49: YYYY | I49: YYYY
C50: YYYY | D50: YYYY | F50: YYYY | G50: YYYY | H50: YYYY | I50: YYYY
C51: YYYY | D51: YYYY | F51: YYYY | G51: YYYY | H51: YYYY | I51: YYYY
A52: corps n | C52: YYYY | D52: YYYY | F52: YYYY | G52: YYYY | H52: YYYY | I52: YYYY
C57: rémunération mensuelle moyenne (par EQTP) | F57: indicateur "qualité" 1 | G57: indicateur "qualité" 2 | H57: indicateur "qualité" 3 | I57: effet démographique du corps | K57: effet primes à C-G-E identique lié à
A58: liste des corps | C58: hommes | D58: femmes | K58: Catégorie prime1 | L58: catégorie prime 2 | M58: Catégorie prime3 | N58: Catégorie prime4 | O58: Catégorie prime5 | P58: Catégorie prime6 | Q58: Catégorie prime7 | R58: Catégorie prime8 | S58: Catégorie prime9 | T58: Catégorie prime10 | U58: Catégorie prime10
A59: corps 1 | C59: YYYY | D59: YYYY | I59: YYYY | L59: YYYY | M59: YYYY | N59: YYYY | O59: YYYY | P59: YYYY | Q59: YYYY | R59: YYYY | S59: YYYY | T59: YYYY | U59: YYYY
A60: corps 2 | C60: YYYY | D60: YYYY | I60: YYYY | L60: YYYY | M60: YYYY | N60: YYYY | O60: YYYY | P60: YYYY | Q60: YYYY | R60: YYYY | S60: YYYY | T60: YYYY | U60: YYYY
A61: … | C61: YYYY | D61: YYYY | I61: YYYY | L61: YYYY | M61: YYYY | N61: YYYY | O61: YYYY | P61: YYYY | Q61: YYYY | R61: YYYY | S61: YYYY | T61: YYYY | U61: YYYY
C62: YYYY | D62: YYYY | I62: YYYY | L62: YYYY | M62: YYYY | N62: YYYY | O62: YYYY | P62: YYYY | Q62: YYYY | R62: YYYY | S62: YYYY | T62: YYYY | U62: YYYY
C63: YYYY | D63: YYYY | I63: YYYY | L63: YYYY | M63: YYYY | N63: YYYY | O63: YYYY | P63: YYYY | Q63: YYYY | R63: YYYY | S63: YYYY | T63: YYYY | U63: YYYY
C64: YYYY | D64: YYYY | I64: YYYY | L64: YYYY | M64: YYYY | N64: YYYY | O64: YYYY | P64: YYYY | Q64: YYYY | R64: YYYY | S64: YYYY | T64: YYYY | U64: YYYY
A65: corps n | C65: YYYY | D65: YYYY | I65: YYYY | L65: YYYY | M65: YYYY | N65: YYYY | O65: YYYY | P65: YYYY | Q65: YYYY | R65: YYYY | S65: YYYY | T65: YYYY | U65: YYYY
C69: écarts rémunération F/H (%) | F69: indicateur "qualité" 1 | G69: indicateur "qualité" 2 | H69: indicateur "qualité" 3 | I69: effet démographique du corps | K69: effet primes à C-G-E identique lié à
A70: liste des corps | C70: hommes | K70: Catégorie prime1 | L70: catégorie prime 2 | M70: Catégorie prime3 | N70: Catégorie prime4 | O70: Catégorie prime5 | P70: Catégorie prime6 | Q70: Catégorie prime7 | R70: Catégorie prime8 | S70: Catégorie prime9 | T70: Catégorie prime10 | U70: Catégorie prime10
A71: corps 1 | C71: =D59/C59 ->  | I71: =I59/C59 ->  | K71: =K59/$C59 ->  | L71: =L59/$C59 ->  | U71: =U59/$C59 -> 
A72: corps 2 | C72: =D60/C60 ->  | I72: =I60/C60 ->  | K72: =K60/$C60 ->  | U72: =U60/$C60 -> 
A73: … | U73: =U61/$C61 -> 
U74: =U62/$C62 -> 
U75: =U63/$C63 -> 
U76: =U64/$C64 -> 
A77: corps n | U77: =U65/$C65 -> 

Sheet Résultats globaux (hidden)
A3: nombre de corps pris en compte | F3: 2
I4: part des femmes (%)
A5: emploi annuel moyen : | D5: hommes | F5: femmes | H5: total
A6: effectifs annuels | D6: 379.8333333 | F6: 11.41666667 | H6: =D6+F6 -> 391.25 | I6: =F6/H6 -> 0.0291799787
A7: équivalents temps plein employés | D7: 376.6833333 | F7: 11.38333333 | H7: =D7+F7 -> 388.0666667 | I7: =F7/H7 -> 0.02933344786
A8: taux moyen de temps partiel | D8: =D7/D6 -> 0.991706889 | F8: =F7/F6 -> 0.997080292 | H8: =H7/H6 -> 0.9918636848
A10: Rémunération mensuelle moyenne en € non redressée du temps partiel (et de la présence partielle dans le mois)
C11: €/mois | F11: €/mois | H11: €/mois | I11: % (F-H)/H
A12: Hommes | C12: 5035.615629 | D12: Femmes | F12: 13337.55562 | G12: écart | H12: =F12-C12 -> 8301.939994 | I12: =F12/C12-1 -> 1.648644497
A14: Rémunération mensuelle moyenne en € par équivalent temps plein
A15: Hommes | C15: 5077.725773 | D15: Femmes | F15: 13376.61142 | G15: écart | H15: =F15-C15 -> 8298.88565 | I15: =F15/C15-1 -> 1.634370587
A18: décomposition des écarts : | H18: €/mois | I18: % effet/(F-H par EQTP)
C19: effet temps partiel | H19: 3.054343754 | I19: =H19/H$15 -> 0.0003680426364
C20: effet ségrégation des corps | H20: -518.4292147 | I20: -0.0624697383
C21: effet démographique au sein des corps | H21: 8817.314865 | I21: 1.062469738
D22: dont sur primes | H22: 5753.255208 | I22: 0.693256354
C23: effet primes à corps-Grade-échelon identique | H23: 0 | I23: 0
D24: dont | E24: Catégorie prime1 | H24: 0 | I24: 0
E25: catégorie prime 2 | H25: 0 | I25: 0
E26: Catégorie prime3 | H26: 0 | I26: 0
E27: Catégorie prime4 | H27: 0 | I27: 0
E28: Catégorie prime5 | H28: 0 | I28: 0
E29: Catégorie prime6 | H29: 0 | I29: 0
E30: Catégorie prime7 | H30: 0 | I30: 0
E31: Catégorie prime8 | H31: 0 | I31: 0
E32: Catégorie prime9 | H32: 0 | I32: 0
E33: Catégorie prime10 | H33: 0 | I33: 0
E34: Autre | H34: 5613393.056 | I34: 676.4032296

Sheet transfa (hidden)
A1: corps | B1: libellé corps
A2: 0000 | B2: Emplois fonctionnels
A3: 0001 | B3: Personnel de direction de 1ère catégorie
A4: 0002 | B4: Personnel de direction de 2ème catégorie
A5: 0005 | B5: Attaché administratif de l'École nationale d'administration (ENA)
A6: 0006 | B6: Secrétaire et secrétaire adjoint de l'École nationale d'administration (ENA)
A7: 0007 | B7: Appariteur de l'École nationale d'administration (ENA)
A8: 0008 | B8: Conservateur d'archives
A9: 0009 | B9: Chiffreur en chef du ministère des Affaires étrangères
A10: 0010 | B10: Ingénieur des travaux ruraux
A11: 0011 | B11: Ingénieur du génie rural des eaux et des forêts
A12: 0012 | B12: Inspecteur général de la Défense (anciens combattants)
A13: 0014 | B13: Inspecteur général de l'Éducation nationale
A14: 0017 | B14: Trésorier-payeur général
A15: 0018 | B15: Préfet
A16: 0019 | B16: Secrétaire administratif des services techniques centraux de l'Aviation civile
A17: 0020 | B17: Attaché d'administration des services techniques et déconcentrés de la direction générale de l'Aviation civile
A18: 0021 | B18: Inspecteur de la navigation et du travail maritime
A19: 0022 | B19: Inspecteur général de la jeunesse et des sports
A20: 0023 | B20: Inspecteur principal de l'enseignement technique
A21: 0024 | B21: Inspecteur général de l'administration du ministère de l'Intérieur
A22: 0025 | B22: Contrôleur des travaux immobiliers du ministère de l'Économie et finances
A23: 0026 | B23: Personnel de catégorie A des services déconcentrés du Trésor
A24: 0027 | B24: Membre des Chambres régionales des comptes
A25: 0028 | B25: Directeur de recherche de l'Institut de recherche pour le développement (IRD)
A26: 0029 | B26: Médecin inspecteur conseiller technique des anciens combattants et victimes de guerre
A27: 0030 | B27: Directeur régional et délégué services déconcentrés des anciens combattants et victimes de guerre
A28: 0031 | B28: Conseiller du Commissariat général du plan
A29: 0032 | B29: Chargé de recherche de l'Institut de recherche pour le développement (IRD)
A30: 0033 | B30: Conseiller d'administration scolaire et universitaire
A31: 0034 | B31: Attaché de recherche de l'Institut de recherche pour le développement (IRD)
A32: 0035 | B32: Ingénieur de recherche de l'Institut de recherche pour le développement (IRD)
A33: 0036 | B33: Ingénieur d'études de l'Institut de recherche pour le développement (IRD)
A34: 0037 | B34: Ingénieur des systèmes d'information et de communication de l'intérieur
A35: 0038 | B35: Assistant ingénieur de l'Institut de recherche pour le développement (IRD)
A36: 0039 | B36: Conseiller et secrétaires des Affaires étrangères
A37: 0040 | B37: Personnel enseignant écoles de reconversion professionnelle de l'Office national des anciens combattants et victimes de guerre (ONACVG - en extinction)
A38: 0041 | B38: Assistant du Commissariat général du plan
A39: 0042 | B39: Officier contrôleur de la circulation aérienne
A40: 0043 | B40: Ingénieur des mines
A41: 0044 | B41: Chargé d'administration de la recherche de l'Institut de recherche pour le développement (IRD)
A42: 0045 | B42: Attaché d'administration de la recherche de l'Institut de recherche pour le développement (IRD)
A43: 0046 | B43: Professeur d'éducation physique et sportive
A44: 0047 | B44: Chargé d'enseignement d'éducation physique et sportive (en voie d'extinction)
A45: 0048 | B45: Interprète du ministère des Affaires étrangères
A46: 0049 | B46: Ingénieur de l'industrie et des mines
A47: 0050 | B47: Professeur de sport
A48: 0051 | B48: Conseiller d'éducation populaire et de jeunesse
A49: 0052 | B49: Chargé d'éducation populaire et de jeunesse (en voie d'extinction)
A50: 0053 | B50: Ingénieur de l'Aviation civile
A51: 0054 | B51: Chargé d'administration de la recherche de l'Institut national de recherche en informatique et en automatique (INRIA)
A52: 0055 | B52: Secrétaire adjoint des Affaires étrangères
A53: 0056 | B53: Ingénieur des services techniques du matériel du ministère de l'Intérieur
A54: 0057 | B54: Membre des tribunaux administratifs
A55: 0058 | B55: Documentaliste du Secrétariat général du gouvernement (SGG)
A56: 0059 | B56: Professeur agrégé de l'enseignement du second degré
A57: 0060 | B57: Administrateur civil
A58: 0061 | B58: Agent supérieur d'administration centrale
A59: 0062 | B59: Attaché d'administration centrale
A60: 0063 | B60: Chiffreur du ministère des Affaires étrangères
A61: 0064 | B61: Chancelier des Affaires étrangères
A62: 0065 | B62: Secrétaire de chancellerie
A63: 0066 | B63: Secrétaire administratif d'administration centrale
A64: 0067 | B64: Secrétaire d'administration centrale
A65: 0068 | B65: Assistant de service social
A66: 0069 | B66: Inspecteur du matériel des Affaires étrangères
A67: 0070 | B67: Adjoint de chancellerie
A68: 0071 | B68: Sténodactylographe de chancellerie
A69: 0072 | B69: Agent technique de chancellerie
A70: 0073 | B70: Adjoint administratif d'administration centrale
A71: 0074 | B71: Secrétaire sténodactylographe
A72: 0075 | B72: Sténodactylographe
A73: 0076 | B73: Sous-préfet
A74: 0077 | B74: Ingénieur des travaux des services techniques du ministère de l'intérieur
A75: 0078 | B75: Administrateur de la ville de Paris
A76: 0079 | B76: Directeur attaché principal et attaché de préfecture
A77: 0080 | B77: Directeur de service administratif attachés principaux et attachés territoriaux
A78: 0081 | B78: Agent administratif supérieur de préfecture (en voie d'extinction)
A79: 0082 | B79: Chef de division et attachés de France d'Outre-mer (en voie d'extinction)
A80: 0083 | B80: Personnel supérieur des groupes mobiles de sécurité (en voie d'extinction)
A81: 0084 | B81: Administrateur des services civils (en voie d'extinction)
A82: 0086 | B82: Agent d'administration de l'intérieur (en voie d'extinction)
A83: 0087 | B83: Contrôleur du service des transmissions
A84: 0088 | B84: Contrôleur divisionnaire des services techniques du matériel
A85: 0089 | B85: Contrôleur des services techniques du matériel
A86: 0090 | B86: Secrétaire en chef de préfecture
A87: 0091 | B87: Secrétaire administratif de préfecture
A88: 0092 | B88: Commandant et officier de paix de la Police nationale
A89: 0093 | B89: Inspecteur de la Police nationale
A90: 0094 | B90: Secrétaire administratif de la Police nationale
A91: 0095 | B91: Agent des systèmes d'information et de communication
A92: 0096 | B92: Gradé et gardien de la paix de la Police nationale
A93: 0097 | B93: Enquêteur de la Police nationale
A94: 0098 | B94: Commis des services extérieurs
A95: 0099 | B95: Agent technique de bureau
A96: 0101 | B96: Contremaître
A97: 0104 | B97: Conducteur d'automobile
A98: 0105 | B98: Chef de garage
A99: 0106 | B99: Téléphoniste
A100: 0107 | B100: Commissaire de la Police nationale
A101: 0108 | B101: Agent de chancellerie
A102: 0110 | B102: Directeur de recherche de l'Institut national de recherche sur les transports et leur sécurité (INRETS)
A103: 0111 | B103: Chargé de recherche de l'Institut national de recherche sur les transports et leur sécurité (INRETS)
A104: 0112 | B104: Ingénieur de recherche de l'Institut national de recherche sur les transports et leur sécurité (INRETS)
A105: 0113 | B105: Ingénieur d'études de l'Institut national de recherche sur les transports et leur sécurité (INRETS)
A106: 0114 | B106: Assistant ingénieur de l'Institut national de recherche sur les transports et leur sécurité (INRETS)
A107: 0115 | B107: Attaché d'administration de la recherche de l'Institut national de recherche sur les transports et leur sécurité (INRETS)
A108: 0116 | B108: Directeur de recherche du Centre national de la recherche scientifique (CNRS)
A109: 0117 | B109: Chargé de recherche du Centre national de la recherche scientifique (CNRS)
A110: 0118 | B110: Attaché de recherche du Centre national de la recherche scientifique (CNRS)
A111: 0119 | B111: Ingénieur de recherche du Centre national de la recherche scientifique (CNRS)
A112: 0120 | B112: Ingénieur d'études des établissements publics scientifiques et technologiques (Centre national de la recherche scientifique (CNRS), Institut national de recherche sur les transports et leur sécurité (
A113: 0121 | B113: Assistant ingénieur des établissements publics scientifiques et technologiques (y compris Centre national de la recherche scientifique (CNRS), Institut national de recherche sur les transports et leur
A114: 0122 | B114: Directeur de recherche de l'Institut français de recherche pour l'exploitation de la mer (IFREMer)
A115: 0123 | B115: Chargé de recherche de l'Institut français de recherche pour l'exploitation de la mer (IFREMer)
A116: 0124 | B116: Ingénieur de recherche de l'Institut français de recherche pour l'exploitation de la mer (IFREMer)
A117: 0125 | B117: Ingénieur d'études de l'Institut français de recherche pour l'exploitation de la mer (IFREMer)
A118: 0126 | B118: Attaché d'administration de la recherche de l'Institut français de recherche pour l'exploitation de la mer (IFREMer)
A119: 0127 | B119: Assistant ingénieur de l'Institut français de recherche pour l'exploitation de la mer (IFREMer)
A120: 0128 | B120: Chargé d'administration de la recherche de l'Institut français de recherche pour l'exploitation de la mer (IFREMer)
A121: 0129 | B121: Directeur de recherche de l'Institut national de la santé et de la recherche médicale (INSERM)
A122: 0130 | B122: Chargé de recherche de l'Institut national de la santé et de la recherche médicale (INSERM)
A123: 0131 | B123: Attaché de recherche de l'Institut national de la santé et de la recherche médicale (INSERM - corps titulaire provisoire)
A124: 0132 | B124: Ingénieur de recherche de l'Institut national de la santé et de la recherche médicale (INSERM)
A125: 0133 | B125: Chargé d'administration de la recherche du Centre national de la recherche scientifique (CNRS)
A126: 0134 | B126: Attaché d'administration de la recherche du Centre national de la recherche scientifique (CNRS)
A127: 0135 | B127: Assistant ingénieur de l'Institut national de la santé et de la recherche médicale (INSERM)
A128: 0136 | B128: Chargé d'administration de la recherche de l'Institut national de la santé et de la recherche médicale (INSERM)
A129: 0137 | B129: Attaché d'administration de la recherche de l'Institut national de la santé et de la recherche médicale (INSERM)
A130: 0138 | B130: Ingénieur d'études de l'Institut national de la santé et de la recherche médicale (INSERM)
A131: 0139 | B131: Traducteur
A132: 0140 | B132: Ministre plénipotentiaire
A133: 0141 | B133: Agent de service de la Police nationale
A134: 0142 | B134: Attaché des services civils (corps en voie d'extinction)
A135: 0143 | B135: Personnel de l'Institut national d'études démographiques (INED)
A136: 0144 | B136: Inspecteur du travail
A137: 0145 | B137: Conseiller au travail à la législation sociale Outre-mer (en extinction)
A138: 0146 | B138: Chef de centre des services déconcentrés du travail
A139: 0147 | B139: Contrôleur des services déconcentrés du travail
A140: 0148 | B140: Contrôleur des services déconcentrés du travail de la Polynésie française
A141: 0149 | B141: Secrétaire général chef des services administratifs de l'Agence nationale de sécurité du médicament et des produits de santé (ANSM, ex-LNS)
A142: 0150 | B142: Pharmacien inspecteur de la santé
A143: 0152 | B143: Personnel scientifique de l'Agence nationale de sécurité du médicament et des produits de santé (ANSM, ex-LNS)
A144: 0153 | B144: Médecin inspecteur de la santé
A145: 0154 | B145: Adjoint au chef des services administratifs et financiers de l'Institut national de la santé et de la recherche médicale (INSERM)
A146: 0155 | B146: Médecin de la santé publique (corps provisoire)
A147: 0156 | B147: Aide comptable écoles de reconversion professionnelle de l'Office national des anciens combattants et victimes de guerre (ONACVG)
A148: 0157 | B148: Aide-soignant de l'Institution nationale des invalides (INI)
A149: 0158 | B149: Personnel supérieur des directions régionales et départementales des affaires sanitaires et sociales
A150: 0159 | B150: Médecin des hôpitaux psychiatriques autonomes (HPA) et établissement national de Saint-Maurice
A151: 0160 | B151: Médecin des sanatoriums publics
A152: 0161 | B152: Médecin des hôpitaux psychiatriques départementaux de la Seine
A153: 0162 | B153: Pharmacien résident des établissements d'hospitalisation, de soins ou de cure publics
A154: 0163 | B154: Pharmacien des hôpitaux psychiatriques et des sanatoriums publics
A155: 0164 | B155: Inspecteur des établissements sanitaires de la Caisse nationale de l'assurance maladie des travailleurs salariés (CNAMTS)
A156: 0165 | B156: Professeur de l'Institut national des jeunes aveugles (INJA)
A157: 0166 | B157: Inspecteur des études des Instituts nationaux de jeunes sourds (INJS)
A158: 0167 | B158: Professeur des Instituts nationaux de jeunes sourds (INJS)
A159: 0168 | B159: Chef d'atelier des Instituts nationaux de jeunes sourds et jeunes aveugles (INJS et INJA - ancien régime - en extinction)
A160: 0169 | B160: Professeur technique chef d'atelier des Instituts nationaux de jeunes sourds et jeunes aveugles (INJS et INJA - en voie d'extinction)
A161: 0170 | B161: Professeur technique des Instituts nationaux de jeunes sourds et jeunes aveugles (INJS et INJA - en voie d'extinction)
A162: 0171 | B162: Directeur des études de l'École des hautes études en santé publique (EHESP, ex-ENSP)
A163: 0172 | B163: Secrétaire général de l'École des hautes études en santé publique (EHESP, ex-ENSP)
A164: 0173 | B164: Chef de contrôle de l'action sanitaire et sociale (en voie d'extinction)
A165: 0174 | B165: Adjoint du service de santé scolaire et universitaire (en extinction)
A166: 0175 | B166: Technicien de laboratoire de l'Agence nationale de sécurité du médicament et des produits de santé (ANSM, ex-LNS)
A167: 0176 | B167: Traducteur de l'Institut national de la santé et de la recherche médicale (INSERM)
A168: 0177 | B168: Régisseur économe et secrétaire écoles de reconversion professionnelle de l'Office national des anciens combattants et victimes de guerre (ONACVG)
A169: 0178 | B169: Personnel infirmier des services médicaux des hôpitaux psychiatriques, des établisssements nationaux bienfaisance, sanatoriums et thermes nationaux
A170: 0179 | B170: Personnel infirmier des services médicaux des établisssements nationaux de bienfaisance (ENB) de la Polynésie française
A171: 0180 | B171: Personnel infirmier des établisssements nationaux de bienfaisance (ENB) de Saint-Pierre et Miquelon
A172: 0181 | B172: Sage-femme des services médicaux hôpitaux psychiatriques, des établisssements nationaux de bienfaisance (ENB), sanatorium national et thermes nationaux
A173: 0182 | B173: Sage-femme des services médicaux des établisssements nationaux de bienfaisance (ENB) de la Polynésie française
A174: 0183 | B174: Orthophoniste des services médicaux des hôpitaux psychiatriques autonomes (HPA), des établisssements nationaux de bienfaisance (ENB) et des thermes nationaux
A175: 0184 | B175: Puériculteur des services médicaux des hôpitaux psychiatriques autonomes (HPA), des établisssements nationaux de bienfaisance (ENB) et des thermes nationaux
A176: 0185 | B176: Orthoptiste des services médicaux des hôpitaux psychiatriques autonomes (HPA), des établisssements nationaux de bienfaisance (ENB) et des thermes nationaux
A177: 0186 | B177: Masseur des services médicaux des hôpitaux psychiatriques autonomes (HPA), des établisssements nationaux de bienfaisance (ENB) et des thermes nationaux
A178: 0187 | B178: Diététicien des services médicaux des hôpitaux psychiatriques autonomes (HPA), des établisssements nationaux de bienfaisance (ENB) et des thermes nationaux
A179: 0188 | B179: Préparateur en pharmacie titulaires du brevet professionnel des établisssements nationaux de bienfaisance (ENB)
A180: 0189 | B180: Préparateur en pharmacie des établisssements nationaux de bienfaisance (ENB - en extinction)
A181: 0190 | B181: Laborantin des services des laboratoires des établisssements nationaux de bienfaisance (ENB)
A182: 0191 | B182: Manipulateur de radiologie des établisssements nationaux de bienfaisance (ENB)
A183: 0192 | B183: Aide physiothérapeute des établisssements nationaux de bienfaisance (ENB)
A184: 0193 | B184: Personnel des services agricoles des hôpitaux psychiatriques autonomes (HPA), des établisssements nationaux bienfaisance et thermes nationaux (en extinction)
A185: 0194 | B185: Laborantin de l'Institution nationale des invalides (INI)
A186: 0195 | B186: Aspirant professeur de l'Institut national des jeunes aveugles (INJA - en extinction)
A187: 0196 | B187: Technicien de la recherche de l'Institut national de la santé et de la recherche médicale (INSERM)
A188: 0197 | B188: Maître répétiteur des Instituts nationaux de jeunes sourds (INJS - en extinction)
A189: 0198 | B189: Éducateur des hôpitaux psychiatriques autonomes (HPA) et du sanatorium de Zuydcoote
A190: 0199 | B190: Éducateur des établisssements nationaux de bienfaisance (ENB)
A191: 0200 | B191: Moniteur éducateur des établisssements nationaux de bienfaisance (ENB - en voie d'extinction)
A192: 0201 | B192: Secrétaire d'administration de la recherche de l'Institut national de la santé et de la recherche médicale (INSERM)
A193: 0203 | B193: Sage-femme d'Outre-mer (corps autonome)
A194: 0204 | B194: Infirmier d'Outre-mer (corps autonome)
A195: 0205 | B195: Technicien de physiothérapie relevant du ministre charge de la santé
A196: 0206 | B196: Infirmier d'administration centrale, des services déconcentrés et des établissements publics
A197: 0207 | B197: Aide médico-sociale de l'action sanitaire et sociale (en extinction)
A198: 0208 | B198: Aide technique de laboratoire de l'Agence nationale de sécurité du médicament et des produits de santé (ANSM, ex-LNS)
A199: 0209 | B199: Agent technique des services sanitaires (en extinction)
A200: 0210 | B200: Aide de laboratoire de l'Agence nationale de sécurité du médicament et des produits de santé (ANSM, ex-LNS)
... 1167 more rows

Sheet Menu Principal (hidden)

Sheet Menu annee mm (hidden)

Sheet Menu annee diff (hidden)

Sheet Nomenclature non DGFIP (hidden)
A1: Libellé détaillé | B1: Code | C1: Libellé catégorie

Sheet DGFIP (hidden)
A1: Libellé code de paie | B1: Code de paie | C1: Libellé catégorie
A2: INDEMNITE MENSUELLE | B2: 101002 | C2: Cat3
A3: TRAITEMENT BRUT - AGENTS EN CONGE DE LONGUEDUREE | B3: 101020 | C3: hors champ
A4: INDEMNITE COMPENSATRICE - D47-1457*04/08/1947 MODIFIE | B4: 101030 | C4: Autre
A5: RETENUE PC-ECLATEMENT CAS PENSIONS - NAM PAY2007-142 | B5: 101050 | C5: hors champ
A6: RETENUE PC IMT-ECLATEMENT CAS PENSIONS - NAM PAY2007-142 | B6: 101052 | C6: hors champ
A7: RETENUE PC NBI-ECLATEMENT CAS PENSIONS | B7: 101053 | C7: hors champ
A8: RETENUE PC ISSP-ECLATEMENT CAS PENSIONS - NAM PAY2007-142 | B8: 101054 | C8: hors champ
A9: RETENUE PC IRTI-ART 127 LFI 1990 - D2011-572*24/05/2011 | B9: 101055 | C9: hors champ
A10: RETENUE PC PSS-ECLATEMENT CAS PENSION - NAM PAY2007-142 | B10: 101056 | C10: hors champ
A11: RETENUE PC SURCOTISATION-ECLATEMENT CAS PENSIONS - NAM PAY2007-142 | B11: 101057 | C11: hors champ
A12: RETENUE PC ISS PTS | B12: 101059 | C12: hors champ
A13: RETENUE PC-TITULAIRES DEFENSE EN CAA - D2006-418*07/04/2006 | B13: 101066 | C13: hors champ
A14: TRAITEMENT BRUT N.B.I. - | B14: 101070 | C14: Cat7
A15: INDEMNITE DE RESIDENCE - | B15: 102000 | C15: Cat3
A16: I.R.E. GROUPE 01 - D67-290*28/03/1967 MODIFIE | B16: 102001 | C16: Cat3
A17: I.R.E. GROUPE 02 - D67-290*28/03/1967 MODIFIE | B17: 102002 | C17: Cat3
A18: I.R.E. GROUPE 03 - D67-290*28/03/1967 MODIFIE | B18: 102003 | C18: Cat3
A19: I.R.E. GROUPE 04 - D67-290*28/03/1967 MODIFIE | B19: 102004 | C19: Cat3
A20: I.R.E. GROUPE 05 - D67-290*28/03/1967 MODIFIE | B20: 102005 | C20: Cat3
A21: I.R.E. GROUPE 06 - D67-290*28/03/1967 MODIFIE | B21: 102006 | C21: Cat3
A22: I.R.E. GROUPE 07 - D67-290*28/03/1967 MODIFIE | B22: 102007 | C22: Cat3
A23: I.R.E. GROUPE 08 - D67-290*28/03/1967 MODIFIE | B23: 102008 | C23: Cat3
A24: I.R.E. GROUPE 09 - D67-290*28/03/1967 MODIFIE | B24: 102009 | C24: Cat3
A25: I.R.E. GROUPE 10 - D67-290*28/03/1967 MODIFIE | B25: 102010 | C25: Cat3
A26: I.R.E. GROUPE 11 - D67-290*28/03/1967 MODIFIE | B26: 102011 | C26: Cat3
A27: I.R.E. GROUPE 12 - D67-290*28/03/1967 MODIFIE | B27: 102012 | C27: Cat3
A28: I.R.E. GROUPE 13 - D67-290*28/03/1967 MODIFIE | B28: 102013 | C28: Cat3
A29: I.R.E. GROUPE 14 - D67-290*28/03/1967 MODIFIE | B29: 102014 | C29: Cat3
A30: I.R.E. GROUPE 15 - D67-290*28/03/1967 MODIFIE | B30: 102015 | C30: Cat3
A31: I.R.E. GROUPE 16 - D67-290*28/03/1967 MODIFIE | B31: 102016 | C31: Cat3
A32: I.R.E. GROUPE 17 - D67-290*28/03/1967 MODIFIE | B32: 102017 | C32: Cat3
A33: I.R.E. GROUPE 18 - D67-290*28/03/1967 MODIFIE | B33: 102018 | C33: Cat3
A34: INDEMNITE SUPPLEMENTAIRE-ART. L122-12 DU CSN | B34: 102051 | C34: hors champ
A35: I.S.V.L.GROUPE1 | B35: 102081 | C35: Cat3
A36: I.S.V.L.GROUPE2 | B36: 102082 | C36: Cat3
A37: I.S.V.L.GROUPE3 | B37: 102083 | C37: Cat3
A38: I.S.V.L.GROUPE4 | B38: 102084 | C38: Cat3
A39: I.S.V.L.GROUPE5 | B39: 102085 | C39: Cat3
A40: I.S.V.L.GROUPE6 | B40: 102086 | C40: Cat3
A41: I.S.V.L.GROUPE7 | B41: 102087 | C41: Cat3
A42: I.S.V.L.GROUPE8 | B42: 102088 | C42: Cat3
A43: INDEM EXPATRIATION GR 01 | B43: 102091 | C43: Cat3
A44: INDEM EXPATRIATION GR 02 | B44: 102092 | C44: Cat3
A45: INDEM EXPATRIATION GR 03 | B45: 102093 | C45: Cat3
A46: INDEM EXPATRIATION GR 04 | B46: 102094 | C46: Cat3
A47: INDEM EXPATRIATION GR 05 | B47: 102095 | C47: Cat3
A48: INDEM EXPATRIATION GR 06 | B48: 102096 | C48: Cat3
A49: INDEM EXPATRIATION GR 07 | B49: 102097 | C49: Cat3
A50: INDEM EXPATRIATION GR 08 | B50: 102098 | C50: Cat3
A51: INDEM EXPATRIATION GR 09 | B51: 102099 | C51: Cat3
A52: SUPP FAMILIAL TRAITEMENT - | B52: 104000 | C52: hors champ
A53: SUPPLEMENT FAMILIAL | B53: 104001 | C53: hors champ
A54: SUPP FAMIL TRAIT DIFFER | B54: 104010 | C54: hors champ
A55: MAJO. FAMILIALES GR. 00 | B55: 104100 | C55: hors champ
A56: MAJO. FAMILIALES GR. 01 | B56: 104101 | C56: hors champ
A57: MAJO. FAMILIALES GR. 02 | B57: 104102 | C57: hors champ
A58: MAJO. FAMILIALES GR. 03 | B58: 104103 | C58: hors champ
A59: MAJO. FAMILIALES GR. 04 | B59: 104104 | C59: hors champ
A60: MAJO. FAMILIALES GR. 05 | B60: 104105 | C60: hors champ
A61: PRIME FAMILLES MODESTES L2009-431*20/04/2009 (LFR 2009) | B61: 200001 | C61: hors champ
A62: VACATIONS NON ASSUJETTIES EN FRANCE (FONCTIONNAIRES INTERNATIONAUX) | B62: 200002 | C62: hors champ
A63: ASSIETTE FORFAIT SOCIAL ART. 137-15 DU CSS | B63: 200003 | C63: hors champ
A64: CONTR.PAT. SOUMISES S.S. ART. L242-1 ALINEAS 6 A 8 ET ART. D242-1 DU CSS | B64: 200004 | C64: hors champ
A65: COT RAFP CAAA D2006-418*07/04/2006 | B65: 200005 | C65: hors champ
A66: BASE IJ SOUMISES S.S. MARINS DE L'EQUIPEMENT - L242-1 CSS | B66: 200006 | C66: hors champ
A67: ABATTEMENT INDEMNITAIRE - LFI 2016 - ART. 148 | B67: 200007 | C67: hors champ
A68: PRESTAT. ASS. MALADIE S.S - | B68: 200008 | C68: hors champ
A69: PRESTAT. ASS. INVALID S.S | B69: 200009 | C69: hors champ
A70: IJ SS NETTES | B70: 200010 | C70: hors champ
A71: PREST. ACC. SERVICE TITUL | B71: 200011 | C71: hors champ
A72: REGUL REDUCTION COTIS HS | B72: 200012 | C72: hors champ
A73: PREST. A.T.NON TITUL | B73: 200013 | C73: hors champ
A74: RENTE ACCIDENT DU TRAVAIL - ARTICLES R434-15 ET R434-34 DU CSS - VST MENSUEL | B74: 200014 | C74: hors champ
A75: BASE FSPOEIE EX OUVR GIATNM2004 | B75: 200015 | C75: hors champ
A76: RENTE ACCIDENT DU TRAVAIL - ARTICLES R434-15 ET R434-34 DU CSS - VST TRIMESTRIEL | B76: 200016 | C76: hors champ
A77: IND. LICENCIEMENT PECULE - D86-83*17/01/1986 TITRE XII | B77: 200018 | C77: hors champ
A78: IND JOURNAL. DEPLACEMENT | B78: 200019 | C78: hors champ
A79: FRAIS DE DEPLACEMENT | B79: 200020 | C79: hors champ
A80: INDEMNITE DE STAGE - D2006-781*03/07/2006 - D2014-1021*08/09/2014 (MEN) | B80: 200021 | C80: hors champ
A81: B.M.C. - PR. DE MOBILITE BOURSES INTRA-EUROPEENNES MARIE CURIE - UNIVERSITES RCE | B81: 200022 | C81: hors champ
A82: FRAIS DEPLAC. FORF. SPEC. - D54-135 (MEN) - D2006-1680 A 1682 | B82: 200023 | C82: hors champ
A83: INDEMNITE DE MUTATION | B83: 200024 | C83: Cat3
A84: FRAIS DE TRANSPORT | B84: 200025 | C84: hors champ
A85: FRAIS CHANGT RES. FORFAIT | B85: 200026 | C85: hors champ
A86: RAPAT OM FRAIS CHANG RESI | B86: 200027 | C86: hors champ
A87: RAPAT OM INDEM. REINSTALL | B87: 200028 | C87: hors champ
A88: IND. HABILLEMENT CHAUSSUR - D 60 1302 DU 5 DECEMBRE 1960 A DU 20/12/96 C.05 TRIM | B88: 200029 | C88: hors champ
A89: FRAIS BUREAU TELEPHONE - | B89: 200030 | C89: hors champ
A90: INDEMNITE DE COSTUME - | B90: 200031 | C90: hors champ
A91: IND. ENTRETIEN BICYCLETTE | B91: 200032 | C91: hors champ
A92: REMBT DOMICILE-TRAVAIL - D2010-676*21/06/2010 - ILE-DE-FRANCE | B92: 200033 | C92: hors champ
A93: IND.FORFAITAIRE SCOLARITE | B93: 200034 | C93: hors champ
A94: INDEMNITE DOC CADASTRAUX DELIVRANCE DES EXTRAITS ET REPRODUCTIONS | B94: 200035 | C94: Cat7
A95: FRAIS D'APPROCHE - D69-600*13/06/1969 MODIFIE - STATISTIQUE AGRICOLE | B95: 200036 | C95: Autre
A96: IND BICYCLETTE DDE | B96: 200037 | C96: hors champ
A97: IND. SUJ. SPEC. O.N.F. | B97: 200038 | C97: Cat7
A98: REMBT DOMICILE-TRAVAIL - D2010-676*21/06/2010 - HORS ILE-DE-FRANCE | B98: 200039 | C98: hors champ
A99: IND. KILOMETRIQUE VELO - D2016- | B99: 200040 | C99: hors champ
A100: FORF. MOBILITES DURABLES | B100: 200041 | C100: hors champ
A101: MAJORATION FAMILIALE | B101: 200046 | C101: hors champ
A102: INDEM MISSION DEPLT TEMP - | B102: 200048 | C102: hors champ
A103: COT PAT ASSURANCE CHOMAGE | B103: 200049 | C103: hors champ
A104: FRAIS DE DEPLACEMENT TEMP | B104: 200050 | C104: hors champ
A105: IND. REPRESENT. MINISTRES | B105: 200051 | C105: hors champ
A106: IND. CHARGES MILITAIRES | B106: 200052 | C106: hors champ
A107: IND. SURVEILLANCE CASINOS - | B107: 200053 | C107: hors champ
A108: INDEMNITE D'UNIFORME - | B108: 200055 | C108: hors champ
A109: IND. PETIT EQUIPEMENT - | B109: 200056 | C109: hors champ
A110: INDEMNITE DE CAMPAGNE | B110: 200057 | C110: hors champ
A111: IND. VIVRE EN MER | B111: 200058 | C111: hors champ
A112: REMB. FRAIS REELS | B112: 200059 | C112: hors champ
A113: INDEMNITE DE PANIER - | B113: 200060 | C113: hors champ
A114: IND.CHARGES AERONAUTIQUESD48-1366*27/08/1948 MODIFIE - ART. 2 - DGA | B114: 200061 | C114: hors champ
A115: INDEMNITE DE ROULAGE | B115: 200062 | C115: Cat7
A116: REGUL. REDUCTION TEPA | B116: 200063 | C116: hors champ
A117: IND. SORTIES EN MER - | B117: 200064 | C117: hors champ
A118: REGUL. COTISATIONS | B118: 200065 | C118: hors champ
A119: IND. DE DEPART VOLONTAIRE | B119: 200066 | C119: hors champ
A120: IND BINAGE SERVICE CULTES ALSACE LORRAINE SEULEMENT | B120: 200067 | C120: hors champ
A121: IND. CHARGES MILITAIRES | B121: 200068 | C121: hors champ
A122: IND. MISSION | B122: 200069 | C122: hors champ
A123: IND. DEPLACT.MIN EQUIPT | B123: 200070 | C123: hors champ
A124: PRESTATIONS FRAIS MED. | B124: 200071 | C124: hors champ
A125: IND. SPE. DE TERRAIN. | B125: 200073 | C125: Autre
A126: IND. DE LOYER. | B126: 200074 | C126: hors champ
A127: ALLOC. CHIEN DE SERVICE - D 2003 449 DU 16/05/03 ADU 16/05/03 (JO DU 21/05/03) | B127: 200075 | C127: hors champ
A128: MAJOR. TIERCE PERSONNE - ART. L434-2 DU CSS AVANTART. 85 DE LA LFSS POUR 2013 | B128: 200076 | C128: hors champ
A129: IND. SPECIF. RUPT. CONV. | B129: 200077 | C129: Cat8
A130: PRIME EXCEPTIONNELLE | B130: 200078 | C130: Cat2
A131: INDEMNITE DE REPAS D2011-1171*23/09/2011 ART.7 - OUVRIERS DGAC ET METEO-FRANCE | B131: 200080 | C131: hors champ
A132: IND.DETERIOR.EFFETS PERSO - | B132: 200081 | C132: hors champ
A133: IND. ENTRETIEN HABILL. - D2005-1028*26/08/2005 - D2000-153*21/02/2000 | B133: 200085 | C133: hors champ
A134: IND. 1ERE MISE D'UNIFORME - D2010-532*20/05/2016 | B134: 200086 | C134: hors champ
A135: ALLOC. SUPPLEMENT. F.N.S. | B135: 200087 | C135: hors champ
A136: INDEMNITE DE FONCTIONS D2012-983*23/08/2012 - MEMBRES DU GOUVERNEMENT | B136: 200088 | C136: Cat6
A137: INDEMNITE MENSUELLE VCI ART. L122-12 DU CODE DU SERVICE NATIONAL | B137: 200090 | C137: hors champ
A138: INDEMNITE SUPPL. VCI ART. L122-12 ET L122-12-1 DU CODE DU SERVICE NATIONAL | B138: 200091 | C138: hors champ
A139: FRAIS REPRESENT C.ETAT - VICE PDT CONSEIL ETAT ETPDT COURS ADM. D'APPEL | B139: 200095 | C139: hors champ
A140: AFEAMA AIDE MAT. DOM | B140: 200096 | C140: hors champ
A141: MEDAILLE D'HONNEUR - D96 342 DU 22/04/96 | B141: 200097 | C141: Cat4
A142: BASE RAFP DETACHES ENCPP NAM 08-067 | B142: 200098 | C142: hors champ
A143: BASE FSPOEIE OUVR AMIANTEBASE FSPOEIE OUVR AMIANTE | B143: 200099 | C143: hors champ
A144: HEURES SUPPLEMENTAIRES | B144: 200101 | C144: Cat2
A145: H. SUP. 14 PREM. H. - | B145: 200102 | C145: Cat2
A146: H. SUP. PLUS DE 14 H. - | B146: 200103 | C146: Cat2
A147: H. SUP. DIM. ET J. F. - | B147: 200104 | C147: Cat2
A148: H SUP 22 HEURES Ó 7 HEURE - | B148: 200105 | C148: Cat2
A149: IND FORF TRAV SUP ADM CEN - D63 32 DU 19/01/63 A DU 5/08/75 A DU 23/12/94 C.20 TRIM | B149: 200106 | C149: Cat7
A150: I. F. T. S. SERVICES EXT. | B150: 200107 | C150: Cat7
A151: IND. SUJETIONS SPE. - D78.965 D73.973 D90.966 D91.1108 ET D92.1002 | B151: 200108 | C151: Cat7
A152: IND. SUJETIONS DIV. - | B152: 200109 | C152: Cat7
A153: IND. DE RESPONSABILITE. - D 00.1101 DU 14/04/00 ETD 02.47 DU 09/01/02 | B153: 200110 | C153: Cat7
A154: IND. TRAV. DANG. OU SALIS - D67.624 DU 23/7/67 MODIFA DU 11/8/75 DU 20/02/96 ALR211.8 | B154: 200111 | C154: Cat7
A155: IND SUJ SPECIALES CHARGES - D92.356 DU 27/3/92 D90.50DU 12/01/90 RLR211.2 C.05 C.20 | B155: 200112 | C155: Cat7
A156: IND. DIFFICULTES ADMINIS. - D 46.2020 DU 17/9/46 C F3.38 DU 28/5/58 C.05 | B156: 200113 | C156: Cat3
A157: PRIME RENDEMENT ADM CENT - D50.196 DU 06/02/50 D45.1753 DU 6/08/45 A DU 2/05/02 | B157: 200114 | C157: Cat7
A158: PRIME DE RENDEMENT - CF. ANNEXE 14 POUR LES TEXTES - SERVICES DECONCENTRES | B158: 200115 | C158: Cat7
A159: PRIME RENDEMENT | B159: 200116 | C159: Cat6
A160: HEURES SUPPLEMENTAIRES - D68-518*30/05/1968 - SERVICES PENITENTIAIRES | B160: 200117 | C160: Cat2
A161: HEURES SUPPLEMENTAIRES | B161: 200118 | C161: Cat2
A162: INDEMNITE DE TECHNICITE - D2010-920*03/08/2010 - D2010-921*03/08/2010 | B162: 200119 | C162: Cat7
A163: INDEM TECHNI MONITEUR DAC | B163: 200120 | C163: Cat7
A164: IND. TECH. OPER.MACH.CPT. - D73.374 DU 28/03/1973 | B164: 200121 | C164: Cat7
A165: JURYS CONCOURS EXAMENS | B165: 200122 | C165: Cat5
A166: COURS ET CONFERENCES | B166: 200123 | C166: Cat5
A167: INDEMNITE D'ENSEIGNEMENT | B167: 200124 | C167: Cat7
A168: VACATIONS - | B168: 200125 | C168: Cat5
A169: S.F.T. DIFFERENTIEL. - | B169: 200126 | C169: hors champ
A170: PRIME SPEC. INSTALLATION - D89-259*24/04/1989 | B170: 200127 | C170: Cat3
A171: INDEMNITE D'ELOIGNEMENT. | B171: 200128 | C171: Cat3
A172: INDEMNITE COMPENSATRICE - AUTRES QUE CELLES PREVUESAU D47-1457*04/08/1947 MODIFIE | B172: 200129 | C172: Autre
A173: COMPENSATRICE ART. 2 - D47-1457*04/08/1947 MODIFIE - ARTICLE 2 | B173: 200130 | C173: Autre
A174: COMPENSATRICE ART. 4 - D47-1457*04/08/1947 MODIFIE - ARTICLE 4 | B174: 200131 | C174: Autre
A175: FRAIS REPRES. (I.F.). | B175: 200133 | C175: hors champ
A176: IND. DIFFERENTIELLE SPECI | B176: 200134 | C176: Autre
A177: IND JOURNALIERE SPECIALE | B177: 200135 | C177: hors champ
A178: AVANTAGE EN NATURE LOGT LOGEMENT A/C DU 1ER JANVIER 2008 | B178: 200136 | C178: hors champ
A179: INDEMNITE DE CABINET. | B179: 200137 | C179: Cat7
A180: SUP. TRAIT. MINISTRE. | B180: 200138 | C180: Cat7
A181: ALLOC. SUPPL. D'ATTENTE. | B181: 200139 | C181: Autre
A182: MAJORATION TRAITEMENT 40% - ANTILLES - GUYANE - SAINT#NAME? | B182: 200141 | C182: Cat3
A183: MAJORATION TRAITEMENT 35% - REUNION | B183: 200142 | C183: Cat3
A184: INDEXATION REUNION. - | B184: 200143 | C184: Cat3
A185: INTERET RETARD. | B185: 200144 | C185: hors champ
A186: VACATION TRAIT REC LOC LV | B186: 200145 | C186: Cat5
A187: INDEMNITE SPECIALE INSTIT - | B187: 200147 | C187: Cat7
A188: COMPLEMENT INDEM FINANCES | B188: 200148 | C188: Cat4
A189: IND EXCEP AIDE A MOBILITE 2000.252 ARRETE DU 15/03/2000 C.20 | B189: 200149 | C189: Cat3
A190: COMPL. GARANTIE. | B190: 200150 | C190: Autre
A191: I.F.T.S. SPECIALE | B191: 200151 | C191: Cat7
A192: TRAVAUX SUPPLEMENTAIRES. | B192: 200152 | C192: Cat2
A193: TRAV. SUPPL. EXCEPT. | B193: 200153 | C193: Cat2
A194: IND.FORFAIT. DEGRESSIVE. - D 77.1445 DU 21/12/77 A DU 9/10/95 RLR 211.3 C.05 C.20 | B194: 200154 | C194: Autre
A195: PRIME DE FONCTION TEMP. | B195: 200155 | C195: Cat7
A196: IND.SPECIALE CONTRACT. HC | B196: 200156 | C196: hors champ
A197: IND.DIFFERENTIELLE SPEC. INSEE | B197: 200157 | C197: Autre
A198: IND.FORF. DIR.REG. ET DEP | B198: 200159 | C198: Cat7
A199: GRATIF.TRAV.AMELIOR.O.N.F | B199: 200160 | C199: Autre
A200: IND PERMAN. TELEPHONISTES | B200: 200161 | C200: Cat2
... 1785 more rows

Sheet Nomenclature DGFIP (hidden)

Sheet Reimport nomenclature (hidden)

Sheet Reimport rémunération (hidden)

Sheet Importer la nomenclature (hidden)
A1: 1
B2: 2
A13: Votre fichier de la nomenclature:
A15: Votre fichier 2 :
A17: Votre fichier 3 :

Sheet catégories de rémunération (hidden)
A1: Catégorie | B1: Intitulés des différentes catégories | C1: Indicatrice sur-rémunération du temps partiel
A2: TIB | B2: TIB | C2: 1
A3: Cat1 | B3: sur-rémunération temps partiel (80% ou 90%) | C3: 0
A4: Cat2 | B4: temps ou aux cycles de travail | C4: 0
A5: Cat3 | B5: géographie et aux mobilités non forcées | C5: 1
A6: Cat4 | B6: résultats / performance / engagement professionnel | C6: 0
A7: Cat5 | B7: rémunérations accessoires | C7: 0
A8: Cat6 | B8: fonctions / sujétions indexées sur le traitement | C8: 1
A9: Cat7 | B9: fonctions / sujétions non indexées sur le traitement | C9: 1
A10: Cat8 | B10: restructurations ou mobilités forcées | C10: 0
A11: Cat9
A12: Cat10
A13: Autre | B13: autres primes et écarts résiduels sur traitement | C13: 0

Sheet Erreur page (hidden)

Sheet nomenclature rémunérations (hidden)
A1: Libellé code de paie | B1: Code de paie | C1: Libellé catégorie
A2: TRAITEMENT BRUT - | B2: 101000 | C2: TIB
A3: TRAITEMENT BRUT - AGENTS EN CONGE DE LONGUEDUREE | B3: 101020 | C3: hors champ
A4: INDEMNITE COMPENSATRICE - D47-1457*04/08/1947 MODIFIE | B4: 101030 | C4: Cat10
A5: TRAITEMENT BRUT N.B.I. - | B5: 101070 | C5: Cat5
A6: INDEMNITE DE RESIDENCE - | B6: 102000 | C6: Cat2
A7: SUPP FAMILIAL TRAITEMENT - | B7: 104000 | C7: hors champ
A8: ABATTEMENT INDEMNITAIRE - LFI 2016 - ART. 148 | B8: 200007 | C8: Cat10
A9: PRESTAT. ASS. MALADIE S.S - | B9: 200008 | C9: hors champ
A10: RENTE ACCIDENT DU TRAVAIL - ARTICLES R434-15 ET R434-34 DU CSS - VST MENSUEL | B10: 200014 | C10: hors champ
A11: RENTE ACCIDENT DU TRAVAIL - ARTICLES R434-15 ET R434-34 DU CSS - VST TRIMESTRIEL | B11: 200016 | C11: hors champ
A12: IND. LICENCIEMENT PECULE - D86-83*17/01/1986 TITRE XII | B12: 200018 | C12: Cat10
A13: INDEMNITE DE STAGE - D2006-781*03/07/2006 - D2014-1021*08/09/2014 (MEN) | B13: 200021 | C13: Cat10
A14: FRAIS DEPLAC. FORF. SPEC. - D54-135 (MEN) - D2006-1680 A 1682 | B14: 200023 | C14: hors champ
A15: IND. HABILLEMENT CHAUSSUR - D 60 1302 DU 5 DECEMBRE 1960 A DU 20/12/96 C.05 TRIM | B15: 200029 | C15: Cat5
A16: FRAIS BUREAU TELEPHONE - | B16: 200030 | C16: Cat10
A17: INDEMNITE DE COSTUME - | B17: 200031 | C17: Cat5
A18: REMBT DOMICILE-TRAVAIL - D2010-676*21/06/2010 - ILE-DE-FRANCE | B18: 200033 | C18: hors champ
A19: FRAIS D'APPROCHE - D69-600*13/06/1969 MODIFIE - STATISTIQUE AGRICOLE | B19: 200036 | C19: Cat10
A20: REMBT DOMICILE-TRAVAIL - D2010-676*21/06/2010 - HORS ILE-DE-FRANCE | B20: 200039 | C20: hors champ
A21: IND. KILOMETRIQUE VELO - D2016- | B21: 200040 | C21: hors champ
A22: INDEM MISSION DEPLT TEMP - | B22: 200048 | C22: Cat10
A23: IND. SURVEILLANCE CASINOS - | B23: 200053 | C23: Cat10
A24: INDEMNITE D'UNIFORME - | B24: 200055 | C24: Cat10
A25: IND. PETIT EQUIPEMENT - | B25: 200056 | C25: Cat10
A26: INDEMNITE DE PANIER - | B26: 200060 | C26: Cat10
A27: IND. SORTIES EN MER - | B27: 200064 | C27: Cat10
A28: ALLOC. CHIEN DE SERVICE - D 2003 449 DU 16/05/03 ADU 16/05/03 (JO DU 21/05/03) | B28: 200075 | C28: Cat10
A29: MAJOR. TIERCE PERSONNE - ART. L434-2 DU CSS AVANTART. 85 DE LA LFSS POUR 2013 | B29: 200076 | C29: Cat10
A30: IND.DETERIOR.EFFETS PERSO - | B30: 200081 | C30: Cat10
A31: IND. ENTRETIEN HABILL. - D2005-1028*26/08/2005 - D2000-153*21/02/2000 | B31: 200085 | C31: Cat10
A32: IND. 1ERE MISE D'UNIFORME - D2010-532*20/05/2016 | B32: 200086 | C32: Cat10
A33: FRAIS REPRESENT C.ETAT - VICE PDT CONSEIL ETAT ETPDT COURS ADM. D'APPEL | B33: 200095 | C33: Cat10
A34: MEDAILLE D'HONNEUR - D96 342 DU 22/04/96 | B34: 200097 | C34: Cat10
A35: H. SUP. 14 PREM. H. - | B35: 200102 | C35: Cat1
A36: H. SUP. PLUS DE 14 H. - | B36: 200103 | C36: Cat1
A37: H. SUP. DIM. ET J. F. - | B37: 200104 | C37: Cat1
A38: H SUP 22 HEURES Ó 7 HEURE - | B38: 200105 | C38: Cat1
A39: IND FORF TRAV SUP ADM CEN - D63 32 DU 19/01/63 A DU 5/08/75 A DU 23/12/94 C.20 TRIM | B39: 200106 | C39: cat5
A40: IND. SUJETIONS SPE. - D78.965 D73.973 D90.966 D91.1108 ET D92.1002 | B40: 200108 | C40: Cat5
A41: IND. SUJETIONS DIV. - | B41: 200109 | C41: Cat5
A42: IND. DE RESPONSABILITE. - D 00.1101 DU 14/04/00 ETD 02.47 DU 09/01/02 | B42: 200110 | C42: cat5
A43: IND. TRAV. DANG. OU SALIS - D67.624 DU 23/7/67 MODIFA DU 11/8/75 DU 20/02/96 ALR211.8 | B43: 200111 | C43: Cat3
A44: IND SUJ SPECIALES CHARGES - D92.356 DU 27/3/92 D90.50DU 12/01/90 RLR211.2 C.05 C.20 | B44: 200112 | C44: cat5
A45: IND. DIFFICULTES ADMINIS. - D 46.2020 DU 17/9/46 C F3.38 DU 28/5/58 C.05 | B45: 200113 | C45: Cat3
A46: PRIME RENDEMENT ADM CENT - D50.196 DU 06/02/50 D45.1753 DU 6/08/45 A DU 2/05/02 | B46: 200114 | C46: cat5
A47: PRIME DE RENDEMENT - CF. ANNEXE 14 POUR LES TEXTES - SERVICES DECONCENTRES | B47: 200115 | C47: cat5
A48: HEURES SUPPLEMENTAIRES - D68-518*30/05/1968 - SERVICES PENITENTIAIRES | B48: 200117 | C48: Cat1
A49: INDEMNITE DE TECHNICITE - D2010-920*03/08/2010 - D2010-921*03/08/2010 | B49: 200119 | C49: cat5
A50: IND. TECH. OPER.MACH.CPT. - D73.374 DU 28/03/1973 | B50: 200121 | C50: cat5
A51: VACATIONS - | B51: 200125 | C51: Cat3
A52: S.F.T. DIFFERENTIEL. - | B52: 200126 | C52: Cat10
A53: PRIME SPEC. INSTALLATION - D89-259*24/04/1989 | B53: 200127 | C53: Cat2
A54: INDEMNITE COMPENSATRICE - AUTRES QUE CELLES PREVUESAU D47-1457*04/08/1947 MODIFIE | B54: 200129 | C54: Cat10
A55: COMPENSATRICE ART. 2 - D47-1457*04/08/1947 MODIFIE - ARTICLE 2 | B55: 200130 | C55: Cat10
A56: COMPENSATRICE ART. 4 - D47-1457*04/08/1947 MODIFIE - ARTICLE 4 | B56: 200131 | C56: Cat10
A57: MAJORATION TRAITEMENT 40% - ANTILLES - GUYANE - SAINT#NAME? | B57: 200141 | C57: Cat2
A58: MAJORATION TRAITEMENT 35% - REUNION | B58: 200142 | C58: Cat2
A59: INDEXATION REUNION. - | B59: 200143 | C59: Cat10
A60: INDEMNITE SPECIALE INSTIT - | B60: 200147 | C60: cat5
A61: IND.FORFAIT. DEGRESSIVE. - D 77.1445 DU 21/12/77 A DU 9/10/95 RLR 211.3 C.05 C.20 | B61: 200154 | C61: Cat3
A62: IND. SUJETIONS EXCEPT. - D 76.1167 DU 3/12/1976 ADU9/10/95 RLR 211.5D C.20 | B62: 200167 | C62: Cat3
A63: IND. RESPONS. REGISSEUR. - D92-681 D92-1368 D97-33 | B63: 200168 | C63: cat5
A64: IND. CAISSE ET RESPONSAB. - D 73 899 DU 18/09/73 A DU16/3/1971 ET DU19/8/1995 RLR 211.3 | B64: 200172 | C64: cat5
A65: IND. GESTION ET RESPONSAB - D 71.34 DU 6/1/1971 A DU9/10/1995 RLR 211.3 C.05 C.20 | B65: 200173 | C65: cat5
A66: IND. DE RISQUES. - D69-945*16/10/1969-D2006-1335*03/11/2006 (MIATTRANSITOIRE) | B66: 200175 | C66: cat5
A67: IND. TRAVAIL DE NUIT - CF LISTE DES DECRETS A LARUBRIQUE 0176 DE L'ANNEXE 14-B | B67: 200176 | C67: Cat1
A68: IND. TRAVAIL DOMINICAL - D 72.430 DU 24/5/1972 MODIF A DU 9/10/1995 RLR 211.5D C.20 | B68: 200177 | C68: Cat1
A69: INDEMNITE D INTERIM - | B69: 200185 | C69: Cat3
A70: INDEMNITE DE FONCTIONS - D 2000 1104 DU 14/11/00 ET ARRETE DU 14/11/00 | B70: 200186 | C70: cat5
A71: PRIME REND.PERS.TECHNIQUE - D 2001 1027 DU 2/11/2001 | B71: 200189 | C71: cat5
A72: SUPP. TRAV. HORS SERVICE - D 88.132 DU 4/2/1988 RLR211.3 C.05 C.20 | B72: 200196 | C72: Cat1
A73: IND. FORFAIT ENSEIGNANTS. - | B73: 200203 | C73: cat5
A74: HEURES ANNEES ENSEIGNT - SECONDAIRE ET TECHNIQUE | B74: 200205 | C74: Cat1
A75: HEURES D INTERROGATION. - | B75: 200207 | C75: Cat1
A76: HTS PAE OU ETUDE DIRIGEE - | B76: 200208 | C76: Cat1
A77: IND. HORAIRES ENSEIGNT. - | B77: 200210 | C77: Cat1
A78: H. A. SUPPLEANCE ENSEIGNT - | B78: 200213 | C78: Cat1
A79: H. EFF. ENSEIGNEMENT. - EFFECTUEES EN DEHORS DESSUPPLEANCES | B79: 200215 | C79: Cat1
A80: PR.PART.RECH.SCIENTIFIQUE - D 86.1170 DU 30/10/86 A DU 30/10/86 C N.17 DU 11/5/95 C.22 | B80: 200221 | C80: cat5
A81: IND.SPEC CONSERV BIBLIOTH - INDEMNITE SPECIALE AUX CONSERVATEURS DES BIBLIOTHEQUES | B81: 200223 | C81: cat5
A82: COURS COMPL. CHAIRE VAC. - D83-1175*23/12/83 | B82: 200226 | C82: Cat1
A83: IND RESPONS CHEF TRAVAUX - | B83: 200230 | C83: cat5
A84: IND. FORF. SUJ. SPEC. - | B84: 200234 | C84: cat5
A85: IND. PROF. JEUN.ET SPORTS - | B85: 200238 | C85: cat5
A86: INDEMNITE DE SCOLARITE - D72-73*21/01/1973 | B86: 200241 | C86: Cat3
A87: IND. MEDECINS-INSPECTEURS - D73-964*11/10/1973 MODIFIE | B87: 200242 | C87: cat5
A88: COLLABORATIONS DIVERSES - D95-532*04/05/1995 MAE | B88: 200249 | C88: Cat3
A89: IND. PERSON. TECHNIQUES. - | B89: 200254 | C89: cat5
A90: IND. DE BIBLIOTHEQUE. - | B90: 200263 | C90: cat5
A91: IND. SPEC. FORF. SUJ. - | B91: 200268 | C91: cat5
A92: IND. COMPLEM. RESIDENCE. - | B92: 200273 | C92: Cat2
A93: IND. CHARGE MISSION. - | B93: 200275 | C93: Cat3
A94: INDEMNITE D'ASTREINTE. - | B94: 200277 | C94: Cat1
A95: VACATIONS TRAIT. ASS.L.V. - REMUNERATION DES ASSISTANTS DE LANGUE VIVANTE | B95: 200279 | C95: cat5
A96: ALLOC. GARANTIE MARQUE. - | B96: 200283 | C96: Cat3
A97: INDEMNITE DE FORMATION - D74-44*18/01/1974 | B97: 200284 | C97: hors champ
A98: PRIME FONCT. INFORMATIQUE - D 71 343 DU 29/04/1971 D80 948 DU 28/11/1980 C.22 MENS | B98: 200286 | C98: cat5
A99: IND. CONGE PAYE. - | B99: 200290 | C99: Cat10
A100: IND. DIFFERENTIELLE - D99-770*06/06/1999 ABROGEPAR D2015-1089*28/08/2015 | B100: 200291 | C100: Cat10
A101: MAJORATION D'EMBARQUEMENT - | B101: 200293 | C101: Cat1
A102: PRIME SERVICE INFIRMIERS - | B102: 200296 | C102: Cat5
A103: IND. DE RISQUE INDEXEE - D2011-571*24/05/2011 | B103: 200312 | C103: Cat5
A104: PRIME VOL PERS NAVIGUANT - | B104: 200316 | C104: cat5
A105: IND. HORAIRE SPEC. T.A.I. - D 72.1012 DU 7/11/1972 ADU 15/4/1975 ET DU 20/2/76 C.20.22 | B105: 200320 | C105: Cat3
A106: IND. MENSUELLE TECHNICITE - D2010-1568*15/12/2010 | B106: 200321 | C106: cat5
A107: SUPPL.FAMILIAL TRAITEMENT - RAI - BERKANIS REUNION | B107: 200322 | C107: hors champ
A108: IND CONSEILLER FORMATION - | B108: 200323 | C108: cat5
A109: REMP.PORTIER CONCIERGE TI - | B109: 200332 | C109: cat5
A110: IND. SUJ. SPECIALE POLICE - D2013-617*11/07/2013 | B110: 200333 | C110: Cat5
A111: MAJORATION TRAVAIL NUIT - | B111: 200334 | C111: Cat1
A112: PRIME DE DEMINAGE - | B112: 200335 | C112: cat5
A113: PRIME PERSONNEL NAVIGANT - | B113: 200336 | C113: cat5
A114: IND LANGUE ETRANGERE - D75-1090 DU 17/11/1975 | B114: 200338 | C114: cat5
A115: IND RISQUES AERIENS P.A.F - | B115: 200339 | C115: cat5
A116: IND TECHNICITE SECURITE - METEO FRANCE D2006-1235*10/10/2006 | B116: 200348 | C116: cat5
A117: METEO. IND. SERV. EN MER. - | B117: 200351 | C117: cat5
A118: PRIME RECH.ENSEIGN.SUP. - D 89.775 D 89.776 DU 23/10/89 A DU 23/10/89 MODIF C.20 | B118: 200361 | C118: cat5
A119: COMPLEMENT REMUNERATION - | B119: 200362 | C119: Cat3
A120: ISOE PART FIXE - | B120: 200364 | C120: Cat3
A121: PRIME PEDAGOGIQUE - D 90.49 DU 12/1/90 MODIFA DU 13/10/95 RLR 212.7 C.20 | B121: 200376 | C121: cat5
A122: IND DIFFERENTIELLE / IRL - COMPENSATRICE IRL INSTITUTEURS | B122: 200377 | C122: cat5
A123: IND ACTIVITES PERI EDUCAT - | B123: 200379 | C123: cat5
A124: INDEMNITE DE FONCTION - D2005 1048 ET 1049 DU 26/08/2005 AVIATION CIVILE | B124: 200389 | C124: cat5
A125: IND SUJET. SPECIALES ZEP - | B125: 200403 | C125: cat5
A126: PRIME D'ADMINISTRATION - D 90.50 DU 12/01/90 A DU13/10/95 RLR 211.2 C.05 C.20 | B126: 200407 | C126: cat5
A127: IND FONCT PART PROF ECOLE - D 91 236 DU 28/02/1991 | B127: 200408 | C127: cat5
A128: ALLOC AIDE RETOUR EMPLOI - ART L 351 12 DU CODE TRAVAIL A 18/12/97 C.22 | B128: 200412 | C128: hors champ
A129: IND SUJ PARTICUL.EDUC.NAT - D 91.466 DU 14/5/1991 A DU 14/5/1991 RLR 212.8 C.22 | B129: 200413 | C129: cat5
A130: IND FORF CONSEIL PR EDUCA - | B130: 200414 | C130: cat5
A131: IND DIFFERENTIELLE SMIC - D91-769*02/08/1991 | B131: 200415 | C131: Cat10
A132: I.S.O.E. PART MODULABLE - | B132: 200430 | C132: Cat3
A133: INDEMNITE CHARGES PENIT. - D2006-1353*08/11/2006 | B133: 200431 | C133: cat5
A134: PRIME ENCADT TECHNI. ART - | B134: 200432 | C134: cat5
A135: IND. SUJETIONS SPECIALES - D2002-47*09/01/2002 MODIFIE - PERSONNEL DE DIRECTION E.N. | B135: 200433 | C135: cat5
A136: IND CHARGES ADMINISTRAT - D 71 847 DU 13/10/71 | B136: 200437 | C136: cat5
A137: PRIME TECHNICITE FORF BIB - D 93.526 DU 26/3/93 A DU17/7/96 RLR 211.5A C.22 | B137: 200440 | C137: cat5
A138: IND FORFAITAIRE MENSUELLE - D93-552*27/03/1993 - AUDITEURS DE JUSTICE | B138: 200444 | C138: cat5
A139: SUJ.ENSEIGN.FORMATI.CONT. - D 93 436 DU 24/03/1993 | B139: 200451 | C139: cat5
A140: REM.ACTI.FORM.CONTINUE EN - D 93 438 DU 24/03/1993 | B140: 200453 | C140: Cat10
A141: REGUL COTIS S.S. PEC AA - | B141: 200457 | C141: hors champ
A142: REGUL COTIS IRCANTEC AA - | B142: 200458 | C142: hors champ
A143: ISO ELEVE PART FIXE - | B143: 200462 | C143: Cat3
A144: IND TECHNI.INSPECT.DDASS - D 98 568 DU 7/07/1998 | B144: 200463 | C144: cat5
A145: IND. DE CHARGES ADMIN. - D90-427*22/05/1990 MODIFIE - D92-204*28/02/1992 | B145: 200466 | C145: Cat10
A146: PREST. ESPECES AS.MALADIE - NOTES PAY 95 197 ET 95 187B | B146: 200474 | C146: Cat10
A147: PRIME DE COMMANDEMENT P.N - ABROGEE PAR D2013-1144*11/12/2013 | B147: 200476 | C147: cat5
A148: IND. FIDELIS. SECT. DIFF. - D99-1055*15/12/1999 MODIFIE - POLICE NATIONALE | B148: 200477 | C148: Cat2
A149: INDEMNITE FORFAITAIRE - D2007-349*14/03/2007 - ADM.PENIT. INSERTION ET PROBATION | B149: 200480 | C149: cat5
A150: IND ENSEIG MILIEU PENIT - D71-685*18/08/1971 | B150: 200484 | C150: cat5
A151: IND CHARGES ADM SECR ACAD - D 92.356 DU 27/3/1992 A DU 09/7/1998 RLR 211.3 C.22 | B151: 200487 | C151: cat5
A152: INDEMNITE EXCEPTIONNELLE - D 97 215 DU 10/03/1997 | B152: 200489 | C152: Cat3
A153: PRIME ACTIVITE CONTR TRAV - D 97 530 DU 26/05/1997 | B153: 200491 | C153: Cat3
A154: IND EXPERTISE POL SCIENTI - D 97 647 DU 31/05/1997 | B154: 200492 | C154: cat5
A155: ALLOCATION SPECIALE - D89-755*18/10/1989 MODIFIE - ING.ETUDES ET FABRICATION DEF. | B155: 200493 | C155: Cat3
A156: HSE ENS SUPPLEANCES - | B156: 200497 | C156: Cat1
A157: IND EXERCICE POSTES DIFF. - D2005 1644*26/12/2005 | B157: 200506 | C157: Cat2
A158: REM.SECTION APPRENTISSAGE - D79 916 DU 17/10/79 D68 536 DU 23/05/68 | B158: 200507 | C158: Cat3
A159: IND EX.DE MISSIONS PREFEC - D 97 1224 DU 26/12/97 JO28/12/97 D 97 1223 | B159: 200508 | C159: Cat3
A160: REMUN. ETUDES DIRIGEES - D96-80*30/01/1996 MODIFIE- ARRETE DU 21/01/2009 | B160: 200510 | C160: Cat3
A161: IND. TRAVAUX INSALUBRES - D67-624*23/07/1967 - OUVRIERS DU MINISTÞRE DES ARMEES | B161: 200515 | C161: Cat3
A162: IND. TRAVAUX SALISSANTS - D67-624*23/07/1967 - OUVRIERS DU MINISTERE DES ARMEES | B162: 200516 | C162: Cat3
A163: IND. TRAVAUX DANGEREUX - D 67 624 23/07/67 A 11/08/75 RLR 211 8 A 20/02/96 RLR 211 8 | B163: 200517 | C163: Cat3
A164: RISQUES PROF. CIVILS DEF - D 82300 31/3/82 ARRETE 28/2/95 | B164: 200518 | C164: cat5
A165: PR. SERVICE ET RENDEMENT - D2009-1558*15/12/2009 | B165: 200522 | C165: Cat3
A166: SURVEILL TRAV.USINE PRIVE - D 45 1857 DU 18/08/1945 | B166: 200523 | C166: Cat3
A167: HSE HORS SUPPLEANCES MLDS - HEURES SUPPL.ENSEIGT MDLSHORS SUPPLEANCES | B167: 200532 | C167: Cat1
A168: HSE SUPPLEANCES MLDS - HSE ENSEIGT MDLS DANS LECADRE DES SUPPLEANCES | B168: 200533 | C168: Cat1
A169: IND.PERMANENCE DOMICILE - DECIS.MINIST.N27328MA/SCR/PC*21/11/1960 DM N37108*01/09/80 | B169: 200534 | C169: Cat1
A170: INDEMNITE SPECIALE - D2001-414*09/05/2001 - CORPS TECHNIQUES DE L'IGN | B170: 200542 | C170: cat5
A171: IND.TRAVAUX SOUS MARINS - (D98 341*06/05/1998) MIN.DEFENSE | B171: 200543 | C171: cat5
A172: IND.ENQUETEURS DE PRIX - (D71 159*26/02/1971) MIN.DEFENSE | B172: 200545 | C172: cat5
A173: REM. GESTION OPHLM - ARTICLE R423-23 DU CODE DE LA CONSTRUCTION ET DE L'HABITAT | B173: 200574 | C173: cat5
A174: MAJO.1ERE HSA ENSEIGNT - EN DEHORS DES SUPPLEANCES(1ERE HEURE) (D50 1253*06/10/1950) | B174: 200576 | C174: Cat1
A175: MAJO.1ERE HSA ENSEIGNT - DANS LE CADRE DES SUPPLEANCES (D50 1253*06/10/1950) | B175: 200577 | C175: Cat1
A176: IND.SUIVI APPRENTIS - (D99 703*03/08/1999) | B176: 200582 | C176: Cat3
A177: PRIME DE SERVICE - SERVICE DE SANTE DES ARMEES (ARR.24/03/1987 MODIFIE) | B177: 200584 | C177: cat5
A178: IND.SUJ.SPECIALE - SERVICE DE SANTE DES ARMEES (D90 693*01/08/1990) | B178: 200585 | C178: cat5
A179: PRIME SPEC.SUJETION - SERVICE DE SANTE DES ARMEES (ARR.23/04/1975) | B179: 200586 | C179: cat5
A180: PRIME FORF.MENSUELLE - SERVICE DE SANTE DES ARMEES (ARR.23/04/1975) | B180: 200587 | C180: cat5
A181: IND.FORF.TRAV.DIM.& JF. - (D92 7*02/01/1992) SERVICE DE SANTE DES ARMEES | B181: 200588 | C181: Cat1
A182: IND.FONCTIONS PARTIC. - D 99 886 DU 19/10/1999 | B182: 200597 | C182: cat5
A183: IND.ENSEIGT MILIEU PENIT. - (D2000 876*06/09/2000) | B183: 200603 | C183: cat5
A184: ALLOC.COMPL.FONCTION - (D2002 710*02/05/2002) | B184: 200604 | C184: cat5
A185: IND.SPEC.SERVICE - (D2003 799*25/08/2003) | B185: 200605 | C185: cat5
A186: PRIME FORF.OPJ - (D99 708*03/08/1999) OFFICIER POLICE JUDICIAIRE | B186: 200606 | C186: cat5
A187: PRIME SPECIALE - (D2000 239*13/03/2000)AGRICULTURE PERS. NON OUVRIERS | B187: 200608 | C187: cat5
A188: IND DE GESTION DES A.S.A. - DGFIP/GESTION PUBLIQUE | B188: 200609 | C188: cat5
A189: IND.SPEC.SUJETIONS - (D2000 240*13/03/2000) MIN.AGRICULT. | B189: 200611 | C189: cat5
A190: IND.COMPENS.NOURRITURE - PERSONNELS CIVILS CUISINEET SALLE MIN.DEFENSE | B190: 200615 | C190: Cat10
A191: IND.FONCTION ANIMATION - (D2001 775*30/08/2001) | B191: 200616 | C191: cat5
A192: PRIME INNOV.SCIENT./TECH. - (D2000 730*31/07/2000) | B192: 200627 | C192: cat5
A193: PRIME DE RENDEMENT - D45-1753*06/08/1945 DGFIPGESTION PUBLIQUE | B193: 200631 | C193: Cat3
A194: IND.DIFFICULTE ACCES - (D2000 1108*14/11/2000) | B194: 200633 | C194: Cat2
A195: ALLOC.INDEMNITAIRE - | B195: 200639 | C195: Cat10
A196: IND. JOURN. DE SUJETIONS - D2001-297*04/04/2001 | B196: 200640 | C196: Cat2
A197: IND.SPEC.RENFORT SAISON. - (D2001 676 ARRETE 27/07/2001) | B197: 200645 | C197: Cat3
A198: IND.COMPENS.SUJ.SPECIF. - D2005-1643*26/12/2005 | B198: 200646 | C198: Cat2
A199: ALLOCATION DE MAITRISE - D2001-722*31/07/2001 | B199: 200647 | C199: Cat3
A200: IND.FONCTIONS - (D2001 811*07/09/2001) | B200: 200650 | C200: cat5
... 479 more rows

Sheet 1er fichier (hidden)
A1: 1
B2: 2
A13: Votre fichier 1 :
A15: Votre fichier 2 :
A17: Votre fichier 3 :

Sheet Base (hidden)
F16: 10

Sheet Tmp (hidden)

Sheet T0 (hidden)

Sheet T1 (hidden)

Sheet T2 (hidden)

Sheet Import Fini (hidden)
F2: 0 | G2: 0 | H2: 0
B12: L'importation du fichier a été un succès.

Sheet 2eme fichier (hidden)
A1: 1
F2: 0 | G2: 0
B10: L'importation du 1er fichier a été un succès.
A13: Votre fichier 2 :
A15: Votre fichier 2 :
A17: Votre fichier 3 :
A19: Votre fichier 4 :

Sheet 3eme fichier (hidden)
A1: 1
F2: 0 | G2: 0
B10: L'importation du 2ème fichier a été un succès.
A13: Votre fichier 3 :
A15: Votre fichier 2 :
A17: Votre fichier 3 :
A19: Votre fichier 4 :

Sheet 4eme fichier (hidden)
A1: 1
F2: 0 | G2: 0
B10: L'importation du 3ème fichier a été un succès.
A13: Votre fichier 4 :
A15: Votre fichier 2 :
A17: Votre fichier 3 :
A19: Votre fichier 4 :
